[Event "GER-ch Youth U12M 2018"]
[Site "Willingen"]
[Date "2018.05.21"]
[Round "4"]
[White "Schubert, Nikita"]
[Black "Haack, Kevin"]
[Result "1/2-1/2"]
[ECO "E09"]
[WhiteElo "1802"]
[BlackElo "1846"]
[Annotator "NA"]
[PlyCount "124"]
[EventDate "2018.05.19"]
[EventType "swiss"]
[EventCountry "GER"]
[SourceTitle "playchess.com"]
[Source "ChessBase"]
[SourceQuality "1"]
[TimeControl "40/4500+30:900+30"]

1. d4 {[%emt 0:00:00]} d5 {[%emt 0:00:04]} 2. Nf3 {[%emt 0:00:00]} Nf6 {[%emt 0:00:05]} 3. g3 {[%emt 0:00:00]} e6 {[%emt 0:00:22]} 4. Bg2 {[%emt 0:00:00]} Be7 {[%emt 0:01:19]} 5. O-O {[%emt 0:00:00]} O-O {[%emt 0:00:07]} 6. c4 {[%emt 0:00:00]} Nbd7 {[%emt 0:02:03]} 7. Qc2 {[%emt 0:03:07]} c6 {[%emt 0:02:56]} 8. Nbd2 {[%emt 0:00:09]} b6 {[%emt 0:06:36]} 9. e4 {[%emt 0:02:26]} Bb7 {[%emt 0:01:33]} 10. Re1 {[%emt 0:06:36] E09: Closed Catalan: Main Line: 7 Qc2 c6 8 Nbd2} (10. e5 Ne8 11. cxd5 cxd5 12. Re1 Rc8 13. Qd1 Qc7 14. Nb1 b5 15. Bf1 b4 16. Bd3 h6 17. Bf4 Qb6 18. Nbd2 Ba6 19. Bc2 f5 20. exf6 Rxf6 {1-0 (32) Gelfand,B (2729)-Stupak,K (2573) Tbilisi 2017}) 10... Rc8 {[%emt 0:03:10]} 11. e5 {[%emt 0:02:22]} Ne8 {[%emt 0:02:04]} 12. cxd5 {[%emt 0:06:11]} exd5 {[%emt 0:05:09]} 13. Nb3 $146 {[%emt 0:12:55]} ({Predecessor:} 13. Nf1 c5 14. h4 cxd4 15. Qd1 Nc5 16. Nxd4 Nc7 17. Ne3 N7e6 18. Ndf5 d4 19. Nd5 Bxd5 20. Bxd5 Re8 21. Qf3 Bf8 22. Nxd4 Nd3 23. Bxe6 {1-0 (23) Bator,R (2502)-Hedman,E (2402) Hallstahammar 2003}) 13... Nc7 {[%emt 0:02:11]} 14. Be3 {[%emt 0:03:37]} Ne6 {[%emt 0:02:21]} 15. Rac1 {[%emt 0:00:59]} c5 {[%emt 0:03:22]} 16. Qd1 {[%emt 0:02:54]} c4 {[%emt 0:01:21]} 17. Nbd2 {[%emt 0:00:43]} b5 {[%emt 0:00:58]} 18. a3 {[%emt 0:02:13]} a5 {[%emt 0:04:06]} 19. Nb1 {[%emt 0:00:33]} Nb6 {[%emt 0:03:46]} 20. Re2 {[%emt 0:03:20]} b4 {[%emt 0:03:38]} 21. axb4 {[%emt 0:02:39]} axb4 {[%emt 0:00:21]} 22. Ne1 {[%emt 0:01:44]} Qd7 {[%emt 0:06:44]} 23. Rd2 {[%emt 0:01:44]} Ba6 {[%emt 0:01:39]} 24. f4 {[%emt 0:04:01]} g6 {[%emt 0:01:50]} 25. Bh3 {[%emt 0:03:43]} f5 {[%emt 0:06:47]} 26. exf6 {[%emt 0:02:53]} Rxf6 {[%emt 0:01:41]} 27. Nf3 {[%emt 0:00:17]} Qc7 {[%emt 0:03:19]} 28. Ng5 {[%emt 0:02:38]} Nxg5 {[%emt 0:04:30]} 29. fxg5 {[%emt 0:00:06]} Rc6 {[%emt 0:01:36]} 30. Bf4 {[%emt 0:04:12]} Qd8 {[%emt 0:01:14]} 31. Bxc8 {[%emt 0:00:57]} Bxc8 {[%emt 0:00:07]} 32. h4 {[%emt 0:03:00]} Bf5 {[%emt 0:01:13]} 33. Qf3 {[%emt 0:03:58]} Be4 {[%emt 0:01:27]} 34. Qf2 {[%emt 0:01:20]} Qd7 {[%emt 0:02:08]} 35. Re2 {[%emt 0:03:24]} Na4 {[%emt 0:03:23]} 36. Qe3 {[%emt 0:03:13]} Qh3 {[%emt 0:02:52]} 37. Rh2 {[%emt 0:00:58]} Qf5 {[%emt 0:00:07]} 38. Nd2 {[%emt 0:01:17]} Re6 {[%emt 0:00:26]} 39. Nxe4 {[%emt 0:01:31]} (39. Rf2 $16 Bd3 40. Be5 Rxe5 41. Qxe5 Qxe5 42. dxe5) 39... Rxe4 {[%emt 0:00:17]} 40. Qd2 {[%emt 0:01:11]} (40. Qf3 $11) 40... Rxd4 {[%emt 0:17:07]} 41. Qe1 {[%emt 0:07:04]} Re4 {[%emt 0:00:00]} 42. Re2 {[%emt 0:01:15]} Bc5+ {[%emt 0:00:00]} 43. Kg2 {[%emt 0:01:04]} Nxb2 {[%emt 0:00:00]} 44. Rxe4 {[%emt 0:05:49]} Qxe4+ {[%emt 0:00:00]} 45. Qxe4 {[%emt 0:00:05]} dxe4 {[%emt 0:00:00]} 46. Be5 {[%emt 0:01:58]} c3 {[%emt 0:00:00]} 47. Bxc3 $1 {[%emt 0:01:17]} bxc3 {[%emt 0:00:00]} 48. Rxc3 {[%emt 0:00:06]} Nd3 {[%emt 0:00:00]} 49. Kf1 {[%emt 0:01:02]} Kf7 {[%emt 0:00:00]} 50. Rc4 {[%emt 0:00:16]} Bd6 {[%emt 0:02:53]} 51. Rxe4 {[%emt 0:00:33]} Bxg3 {[%emt 0:01:34]} 52. Kg2 {[%emt 0:01:45]} Bd6 {[%emt 0:02:23]} 53. Rd4 {[%emt 0:00:20]} Nf4+ {[%emt 0:00:08]} 54. Kf3 {[%emt 0:00:07]} Ke6 {[%emt 0:01:08]} 55. Ra4 {[%emt 0:00:22]} Nd5 {[%emt 0:00:42]} 56. Ra7 {[%emt 0:00:15]} Ne7 {[%emt 0:00:33]} 57. Ra6 {[%emt 0:00:16]} Nf5 {[%emt 0:00:20]} 58. Kg4 {[%emt 0:00:19]} Ke5 {[%emt 0:01:47]} 59. Ra7 {[%emt 0:00:47]} Be7 {[%emt 0:00:15]} 60. Ra5+ {[%emt 0:00:25]} Ke4 {[%emt 0:00:58]} 61. Ra4+ {[%emt 0:00:39]} Ke3 {[%emt 0:00:22]} 62. Ra5 $11 {[%emt 0:00:19]} Ke4 {[%emt 0:00:26]} 1/2-1/2

[Event "GER-ch Youth U12M 2018"]
[Site "Willingen"]
[Date "2018.05.21"]
[Round "4"]
[White "Lutz, Adam"]
[Black "Farokhi, Keyvan"]
[Result "0-1"]
[ECO "B76"]
[WhiteElo "1761"]
[BlackElo "1844"]
[Annotator "NA"]
[PlyCount "110"]
[EventDate "2018.05.19"]
[EventType "swiss"]
[EventCountry "GER"]
[SourceTitle "playchess.com"]
[Source "ChessBase"]
[SourceQuality "1"]
[TimeControl "40/4500+30:900+30"]

1. e4 {[%emt 0:00:00]} c5 {[%emt 0:00:06]} 2. Nf3 {[%emt 0:00:00]} d6 {[%emt 0:00:09]} 3. d4 {[%emt 0:00:27]} cxd4 {[%emt 0:00:09]} 4. Nxd4 {[%emt 0:00:03]} Nf6 {[%emt 0:00:11]} 5. Nc3 {[%emt 0:00:05]} g6 {[%emt 0:00:09]} 6. Be3 {[%emt 0:01:17]} Bg7 {[%emt 0:00:11]} 7. f3 {[%emt 0:00:32]} O-O {[%emt 0:00:12]} 8. Qd2 {[%emt 0:00:21]} Nc6 {[%emt 0:00:14]} 9. O-O-O {[%emt 0:01:37]} Bd7 {[%emt 0:00:15]} 10. g4 {[%emt 0:02:54]} Qa5 {[%emt 0:02:48]} 11. Kb1 {[%emt 0:00:50]} Rac8 {[%emt 0:00:18]} 12. h4 {[%emt 0:03:27]} Ne5 {[%emt 0:00:17]} 13. Nd5 {[%emt 0:03:27]} Qxd2 {[%emt 0:01:40]} 14. Nxe7+ {[%emt 0:00:19]} Kh8 {[%emt 0:00:06]} 15. Rxd2 {[%emt 0:00:17]} Rce8 {[%emt 0:00:05]} 16. g5 {[%emt 0:03:09]} Rxe7 {[%emt 0:02:05]} 17. gxf6 {[%emt 0:00:10]} Bxf6 {[%emt 0:00:08]} 18. Rdh2 {[%emt 0:06:00]} d5 {[%emt 0:09:16]} 19. Bh6 {[%emt 0:00:57]} Rfe8 {[%emt 0:00:26]} 20. Bg5 {[%emt 0:00:07]} Kg7 {[%emt 0:01:36]} 21. f4 {[%emt 0:09:49]} Ng4 {[%emt 0:03:24]} 22. Bxf6+ {[%emt 0:05:00]} Nxf6 {[%emt 0:01:34]} 23. e5 {[%emt 0:02:11]} Nh5 {[%emt 0:00:08]} 24. Rf2 {[%emt 0:01:37]} f6 {[%emt 0:00:18]} 25. Nb5 {[%emt 0:10:29]} Ng3 {[%emt 0:04:06]} 26. Rg1 {[%emt 0:02:13]} Nxf1 {[%emt 0:00:10]} 27. Nd6 {[%emt 0:00:08]} Ne3 {[%emt 0:00:18]} 28. Nxe8+ {[%emt 0:00:32]} Rxe8 {[%emt 0:00:15]} 29. Re2 {[%emt 0:01:32]} Ng4 {[%emt 0:02:12]} 30. Rge1 {[%emt 0:06:18]} fxe5 {[%emt 0:01:52]} 31. fxe5 {[%emt 0:00:12]} Kf7 {[%emt 0:01:45]} 32. c3 {[%emt 0:01:02]} Bf5+ {[%emt 0:00:13]} 33. Kc1 {[%emt 0:00:24]} Be4 {[%emt 0:00:12]} 34. e6+ {[%emt 0:01:45]} Rxe6 {[%emt 0:00:21]} 35. c4 {[%emt 0:00:42]} Rc6 {[%emt 0:01:07]} 36. Rf1+ {[%emt 0:00:19]} Kg7 {[%emt 0:00:47]} 37. Rf4 {[%emt 0:00:30]} Rxc4+ {[%emt 0:00:15]} 38. Kd2 {[%emt 0:00:59]} Rc2+ {[%emt 0:00:17]} 39. Kd1 {[%emt 0:00:20]} Rxe2 {[%emt 0:00:17]} 40. Kxe2 {[%emt 0:00:01]} Ne5 {[%emt 0:15:15]} 41. b3 {[%emt 0:15:27]} h6 {[%emt 0:00:31]} 42. Ke3 {[%emt 0:00:29]} g5 {[%emt 0:00:09]} 43. hxg5 {[%emt 0:00:20]} hxg5 {[%emt 0:00:07]} 44. Rf1 {[%emt 0:00:03]} Nc6 {[%emt 0:00:21]} 45. Rg1 {[%emt 0:01:18]} Kg6 {[%emt 0:00:21]} 46. Rf1 {[%emt 0:00:14]} g4 {[%emt 0:00:22]} 47. Kf4 {[%emt 0:00:41]} Bf3 {[%emt 0:00:11]} 48. Re1 {[%emt 0:00:25]} d4 {[%emt 0:00:16]} 49. a3 {[%emt 0:01:05]} d3 {[%emt 0:00:51]} 50. Ke3 {[%emt 0:00:30]} Ne5 {[%emt 0:00:04]} 51. Rg1 {[%emt 0:01:00]} Kg5 {[%emt 0:00:31]} 52. a4 {[%emt 0:00:27]} Be2 {[%emt 0:00:26]} 53. Rg3 {[%emt 0:02:29]} Nf3 {[%emt 0:00:10]} 54. Rg2 {[%emt 0:00:17]} Kh4 {[%emt 0:00:14]} 55. Rf2 {[%emt 0:00:34]} g3 {[%emt 0:00:10] Kd4} 0-1

[Event "GER-ch Youth U12M 2018"]
[Site "Willingen"]
[Date "2018.05.21"]
[Round "4"]
[White "Rössel, Gino"]
[Black "Stepanov, Maximilian"]
[Result "1/2-1/2"]
[ECO "B00"]
[WhiteElo "1705"]
[BlackElo "1300"]
[Annotator "NA"]
[PlyCount "111"]
[EventDate "2018.05.19"]
[EventType "swiss"]
[EventCountry "GER"]
[SourceTitle "playchess.com"]
[Source "ChessBase"]
[SourceQuality "1"]
[TimeControl "40/4500+30:900+30"]

1. e4 {[%emt 0:00:00]} d6 {[%emt 0:00:12]} 2. Nc3 {[%emt 0:00:03]} g6 {[%emt 0:00:12]} 3. f4 {[%emt 0:00:27]} Bg7 {[%emt 0:00:12]} 4. Nf3 {[%emt 0:00:19]} Bg4 {[%emt 0:00:22]} 5. Bc4 {[%emt 0:00:44]} Nd7 {[%emt 0:00:26]} 6. O-O {[%emt 0:00:44]} Ngf6 {[%emt 0:00:23]} 7. d3 {[%emt 0:01:31]} O-O {[%emt 0:00:10]} 8. h3 {[%emt 0:01:13]} Bxf3 {[%emt 0:00:16]} 9. Rxf3 {[%emt 0:00:16]} c6 {[%emt 0:00:31]} 10. a4 {[%emt 0:07:09]} e6 {[%emt 0:02:22]} 11. Ba2 {[%emt 0:11:45]} d5 {[%emt 0:02:03]} 12. e5 {[%emt 0:02:16]} Ne8 {[%emt 0:00:37]} 13. Qe2 {[%emt 0:08:54]} Nc7 {[%emt 0:01:10]} 14. Bd2 {[%emt 0:02:23]} d4 {[%emt 0:01:46]} 15. Ne4 {[%emt 0:00:47]} Qe7 {[%emt 0:03:39]} 16. g4 {[%emt 0:04:12]} Nd5 {[%emt 0:02:58]} 17. Bxd5 {[%emt 0:01:22]} cxd5 {[%emt 0:00:36]} 18. Nd6 {[%emt 0:08:57]} Qd8 {[%emt 0:02:36]} 19. Bb4 {[%emt 0:04:13]} Qb6 {[%emt 0:01:52]} 20. Nb5 {[%emt 0:01:41]} Rfc8 {[%emt 0:00:52]} 21. Ba3 {[%emt 0:01:24]} Bf8 {[%emt 0:00:31]} 22. Bxf8 {[%emt 0:01:48]} Kxf8 {[%emt 0:00:22]} 23. b3 {[%emt 0:01:08]} a6 {[%emt 0:00:48]} 24. Nd6 {[%emt 0:00:10]} Rc3 {[%emt 0:00:41]} 25. f5 {[%emt 0:01:12]} Kg8 {[%emt 0:03:09]} 26. fxg6 {[%emt 0:02:07]} fxg6 {[%emt 0:00:13]} 27. Rf7 {[%emt 0:07:09]} Qc7 {[%emt 0:01:58]} 28. Qd2 {[%emt 0:04:46]} Nxe5 {[%emt 0:02:38]} 29. Rxc7 {[%emt 0:03:21]} Nf3+ {[%emt 0:00:10]} 30. Kf2 {[%emt 0:02:22]} Nxd2 {[%emt 0:00:10]} 31. Rxc3 {[%emt 0:00:09]} dxc3 {[%emt 0:00:09]} 32. Re1 {[%emt 0:00:53]} Rf8+ {[%emt 0:00:27]} 33. Kg2 {[%emt 0:00:13]} Nf3 {[%emt 0:02:51]} 34. Rc1 {[%emt 0:04:11]} Nd4 {[%emt 0:00:54]} 35. Nxb7 {[%emt 0:00:40]} Rf3 {[%emt 0:01:03]} 36. Nc5 {[%emt 0:01:20]} a5 {[%emt 0:01:32]} 37. Nb7 {[%emt 0:00:26]} Re3 {[%emt 0:00:07]} 38. Nxa5 {[%emt 0:00:41]} Re2+ {[%emt 0:00:10]} 39. Kg1 {[%emt 0:00:52]} Rxc2 {[%emt 0:00:26]} 40. Rxc2 {[%emt 0:00:04]} Nxc2 {[%emt 0:15:04]} 41. Kf2 {[%emt 0:15:48]} Nd4 {[%emt 0:00:49]} 42. Ke1 {[%emt 0:00:14]} Kf7 {[%emt 0:02:00]} 43. Kd1 {[%emt 0:00:00]} e5 {[%emt 0:00:00]} 44. b4 {[%emt 0:00:00]} e4 {[%emt 0:00:00]} 45. dxe4 {[%emt 0:00:00]} dxe4 {[%emt 0:00:00]} 46. Nc4 {[%emt 0:00:00]} Ke7 {[%emt 0:00:00]} 47. Ne3 {[%emt 0:00:00]} Kd6 {[%emt 0:00:00]} 48. b5 {[%emt 0:00:00]} Kc5 {[%emt 0:00:00]} 49. b6 {[%emt 0:00:00]} Kxb6 {[%emt 0:00:00]} 50. Nd5+ {[%emt 0:00:00]} Ka5 {[%emt 0:00:00]} 51. Nxc3 {[%emt 0:00:00]} e3 52. Nd5 {[%emt 0:00:00]} Kxa4 {[%emt 0:01:31]} 53. Nxe3 {[%emt 0:00:00]} Kb5 {[%emt 0:00:38]} 54. Ke1 {[%emt 0:00:00]} Kc5 {[%emt 0:00:19]} 55. Kf2 {[%emt 0:00:00]} Kd6 {[%emt 0:00:10]} 56. Kg3 {[%emt 0:02:11]} 1/2-1/2

[Event "GER-ch Youth U12M 2018"]
[Site "Willingen"]
[Date "2018.05.21"]
[Round "4"]
[White "Chassard, Cedric"]
[Black "Sieber, Bert"]
[Result "1-0"]
[ECO "B32"]
[WhiteElo "1590"]
[BlackElo "1453"]
[Annotator "NA"]
[PlyCount "149"]
[EventDate "2018.05.19"]
[EventType "swiss"]
[EventCountry "GER"]
[SourceTitle "playchess.com"]
[Source "ChessBase"]
[SourceQuality "1"]
[TimeControl "40/4500+30:900+30"]

1. e4 {[%emt 0:00:00]} c5 {[%emt 0:00:01]} 2. Nf3 {[%emt 0:00:00]} Nc6 {[%emt 0:00:07]} 3. d4 {[%emt 0:00:00]} cxd4 4. Nxd4 {[%emt 0:00:00]} g6 {[%emt 0:01:16]} 5. Be3 {[%emt 0:01:03]} Bg7 {[%emt 0:00:56]} 6. c4 {[%emt 0:00:16]} d6 {[%emt 0:01:18]} 7. Nc3 {[%emt 0:00:25]} Nf6 {[%emt 0:02:15]} 8. Be2 {[%emt 0:00:29]} Nxd4 {[%emt 0:04:21]} 9. Bxd4 {[%emt 0:00:23]} O-O {[%emt 0:00:26]} 10. O-O {[%emt 0:00:26]} a5 {[%emt 0:02:37]} 11. Qd2 {[%emt 0:04:31]} a4 {[%emt 0:04:16]} 12. Rfd1 {[%emt 0:04:21]} Qa5 {[%emt 0:02:14]} 13. Bxf6 {[%emt 0:03:14]} Bxf6 {[%emt 0:09:39]} 14. Nd5 {[%emt 0:00:31]} Rd8 {[%emt 0:05:57]} 15. Nxf6+ {[%emt 0:00:44]} exf6 {[%emt 0:00:19]} 16. Qxa5 {[%emt 0:02:08]} Rxa5 {[%emt 0:00:21]} 17. Rd2 {[%emt 0:00:39]} Kf8 {[%emt 0:04:44]} 18. Rad1 {[%emt 0:00:12]} Ke7 {[%emt 0:00:30]} 19. Rd5 {[%emt 0:03:02]} Rc5 {[%emt 0:06:09]} 20. b4 {[%emt 0:08:40]} axb3 {[%emt 0:00:48]} 21. axb3 {[%emt 0:00:13]} Be6 {[%emt 0:00:45]} 22. R5d4 {[%emt 0:00:49]} Rcc8 {[%emt 0:07:36]} 23. R4d2 {[%emt 0:04:31]} f5 {[%emt 0:04:06]} 24. exf5 {[%emt 0:00:57]} Bxf5 25. Bf3 {[%emt 0:00:42]} Rb8 {[%emt 0:04:12]} 26. g4 {[%emt 0:03:07]} Be6 {[%emt 0:00:58]} 27. Re1 {[%emt 0:03:58]} b5 {[%emt 0:02:12]} 28. Bd5 {[%emt 0:00:57]} bxc4 {[%emt 0:06:12]} 29. bxc4 {[%emt 0:01:11]} Kf6 {[%emt 0:00:40]} 30. Bxe6 {[%emt 0:00:44]} fxe6 {[%emt 0:00:44]} 31. g5+ {[%emt 0:02:30]} Kf7 {[%emt 0:04:08]} 32. Ra1 {[%emt 0:02:15]} Ke7 {[%emt 0:01:05]} 33. Rd4 {[%emt 0:01:46]} Rbc8 {[%emt 0:00:44]} 34. Rh4 {[%emt 0:00:19]} e5 {[%emt 0:00:50]} 35. Ra7+ {[%emt 0:01:52]} Ke6 {[%emt 0:00:10]} 36. Raxh7 {[%emt 0:01:10]} Kf5 {[%emt 0:00:20]} 37. h3 {[%emt 0:02:23]} Rg8 {[%emt 0:00:44]} 38. Rg4 {[%emt 0:01:08]} e4 {[%emt 0:03:45]} 39. Rf7+ {[%emt 0:04:48]} Ke6 {[%emt 0:01:16]} 40. Rf6+ {[%emt 0:03:16]} Ke5 {[%emt 0:16:19]} 41. f4+ {[%emt 0:15:31]} Kd4 {[%emt 0:01:37]} 42. Rxd6+ {[%emt 0:00:30]} Kxc4 {[%emt 0:00:15]} 43. Kf2 {[%emt 0:01:46]} Rcd8 {[%emt 0:00:43]} 44. Rxd8 {[%emt 0:00:43]} Rxd8 {[%emt 0:00:03]} 45. Ke3 {[%emt 0:00:12]} Kd5 {[%emt 0:00:19]} 46. Rg1 {[%emt 0:00:17]} Rh8 {[%emt 0:00:36]} 47. Rd1+ {[%emt 0:00:48]} Ke6 {[%emt 0:00:15]} 48. Ra1 {[%emt 0:00:27]} Rxh3+ {[%emt 0:00:35]} 49. Kxe4 {[%emt 0:00:11]} Rb3 {[%emt 0:01:33]} 50. Ra6+ {[%emt 0:00:12]} Kf7 {[%emt 0:00:09]} 51. Rf6+ {[%emt 0:00:10]} Kg7 {[%emt 0:00:08]} 52. Ke5 {[%emt 0:00:13]} Ra3 {[%emt 0:01:31]} 53. Rc6 {[%emt 0:01:11]} Ra5+ {[%emt 0:00:34]} 54. Ke4 {[%emt 0:02:09]} Rf5 {[%emt 0:00:22]} 55. Rc7+ {[%emt 0:01:02]} Kf8 {[%emt 0:01:20]} 56. Rd7 {[%emt 0:01:52]} Kg8 {[%emt 0:01:01]} 57. Rd8+ {[%emt 0:01:03]} Kf7 {[%emt 0:00:13]} 58. Rd5 {[%emt 0:00:27]} Ke6 {[%emt 0:01:19]} 59. Rxf5 {[%emt 0:00:38]} gxf5+ {[%emt 0:00:13]} 60. Kd4 {[%emt 0:00:03]} Kd6 {[%emt 0:00:07]} 61. Kc4 {[%emt 0:00:07]} Kd7 {[%emt 0:00:11]} 62. Kd5 {[%emt 0:00:04]} Ke7 {[%emt 0:01:23]} 63. Ke5 {[%emt 0:00:05]} Kf7 {[%emt 0:00:02]} 64. Kxf5 {[%emt 0:00:05]} Kg7 {[%emt 0:00:26]} 65. Ke6 {[%emt 0:00:03]} Kf8 {[%emt 0:00:05]} 66. f5 {[%emt 0:00:04]} Ke8 {[%emt 0:00:10]} 67. f6 {[%emt 0:00:12]} Kf8 {[%emt 0:00:05]} 68. f7 {[%emt 0:00:08]} Kg7 {[%emt 0:00:35]} 69. Ke7 {[%emt 0:00:03]} Kg6 {[%emt 0:00:09]} 70. f8=Q {[%emt 0:00:06]} Kxg5 {[%emt 0:00:04]} 71. Ke6 Kg4 72. Ke5 {[%emt 0:00:43]} Kg5 {[%emt 0:00:33]} 73. Qg7+ {[%emt 0:00:04]} Kh4 {[%emt 0:00:09]} 74. Kf4 {[%emt 0:00:03]} Kh3 {[%emt 0:00:06]} 75. Qg3# {[%emt 0:00:05]} 1-0

[Event "GER-ch Youth U12M 2018"]
[Site "Willingen"]
[Date "2018.05.21"]
[Round "4"]
[White "Pikalow, Michael"]
[Black "Neuber, Pascal"]
[Result "1/2-1/2"]
[ECO "B40"]
[WhiteElo "1540"]
[BlackElo "1782"]
[Annotator "NA"]
[PlyCount "72"]
[EventDate "2018.05.19"]
[EventType "swiss"]
[EventCountry "GER"]
[SourceTitle "playchess.com"]
[Source "ChessBase"]
[SourceQuality "1"]
[TimeControl "40/4500+30:900+30"]

1. e4 {[%emt 0:00:00]} c5 {[%emt 0:00:07]} 2. Nf3 {[%emt 0:00:00]} e6 {[%emt 0:00:21]} 3. d4 {[%emt 0:00:00]} cxd4 {[%emt 0:00:09]} 4. Nxd4 {[%emt 0:00:00]} Nf6 {[%emt 0:00:14]} 5. Nc3 {[%emt 0:00:05]} Nc6 {[%emt 0:00:27]} 6. Ndb5 {[%emt 0:06:44]} Bb4 {[%emt 0:00:20]} 7. a3 {[%emt 0:00:09]} Bxc3+ {[%emt 0:00:06]} 8. Nxc3 {[%emt 0:00:04]} d5 {[%emt 0:00:23]} 9. exd5 {[%emt 0:01:13]} exd5 {[%emt 0:00:06]} 10. Bb5 {[%emt 0:02:27]} d4 {[%emt 0:01:30]} 11. Qe2+ {[%emt 0:03:39]} Be6 {[%emt 0:01:25]} 12. Bxc6+ {[%emt 0:00:45]} bxc6 {[%emt 0:00:27]} 13. Ne4 {[%emt 0:00:13]} Nxe4 {[%emt 0:02:58]} 14. Qxe4 {[%emt 0:00:07]} O-O {[%emt 0:00:58]} 15. O-O {[%emt 0:00:20]} c5 {[%emt 0:03:40]} 16. f4 {[%emt 0:03:49]} Re8 {[%emt 0:07:35]} 17. f5 {[%emt 0:05:53]} Bc4 {[%emt 0:05:11]} 18. Qg4 {[%emt 0:00:22]} Be2 {[%emt 0:03:16]} 19. Qg3 {[%emt 0:01:55]} Bxf1 {[%emt 0:00:12]} 20. Bg5 {[%emt 0:02:54]} Qb8 {[%emt 0:03:09]} 21. Bf4 {[%emt 0:03:45]} Qb6 {[%emt 0:02:46]} 22. Rxf1 {[%emt 0:01:14]} f6 {[%emt 0:00:23]} 23. h4 {[%emt 0:02:51]} Kh8 {[%emt 0:01:28]} 24. h5 {[%emt 0:02:24]} h6 {[%emt 0:01:41]} 25. Qg6 {[%emt 0:01:22]} Re7 {[%emt 0:02:05]} 26. Rf3 {[%emt 0:05:35]} Qd8 {[%emt 0:12:57]} 27. Bxh6 {[%emt 0:04:22]} gxh6 {[%emt 0:01:39]} 28. Qxf6+ {[%emt 0:00:04]} Rg7 {[%emt 0:00:39]} 29. Qxh6+ {[%emt 0:00:05]} Rh7 {[%emt 0:00:09]} 30. Qg6 {[%emt 0:00:19]} Qg8 {[%emt 0:05:11]} 31. g4 {[%emt 0:02:56]} Rg7 {[%emt 0:06:57]} 32. Qh6+ {[%emt 0:02:05]} Qh7 {[%emt 0:00:49]} 33. Qf6 {[%emt 0:00:13]} Kg8 {[%emt 0:07:26]} 34. Qe6+ {[%emt 0:01:44]} Rf7 {[%emt 0:04:03]} 35. g5 {[%emt 0:01:45]} Qxh5 {[%emt 0:04:40]} 36. g6 {[%emt 0:01:31]} Qh6 1/2-1/2

[Event "GER-ch Youth U12M 2018"]
[Site "Willingen"]
[Date "2018.05.21"]
[Round "4"]
[White "Sallandt, Frido"]
[Black "Bakiev, Diyor"]
[Result "1/2-1/2"]
[ECO "C54"]
[WhiteElo "1524"]
[BlackElo "1752"]
[Annotator "NA"]
[PlyCount "110"]
[EventDate "2018.05.19"]
[EventType "swiss"]
[EventCountry "GER"]
[SourceTitle "playchess.com"]
[Source "ChessBase"]
[SourceQuality "1"]
[TimeControl "40/4500+30:900+30"]

1. e4 {[%emt 0:00:00]} e5 {[%emt 0:00:05]} 2. Nf3 {[%emt 0:00:00]} Nc6 {[%emt 0:00:08]} 3. Bc4 {[%emt 0:00:00]} Bc5 {[%emt 0:00:06]} 4. c3 {[%emt 0:00:00]} Nf6 {[%emt 0:00:06]} 5. d3 {[%emt 0:00:03]} d6 {[%emt 0:00:18]} 6. b4 {[%emt 0:00:16]} Bb6 {[%emt 0:00:07]} 7. O-O {[%emt 0:00:09]} O-O {[%emt 0:00:12]} 8. Nbd2 {[%emt 0:00:19]} a6 {[%emt 0:01:08]} 9. h3 {[%emt 0:01:23]} h6 {[%emt 0:00:53]} 10. Re1 {[%emt 0:00:30]} Re8 {[%emt 0:00:23]} 11. Nf1 {[%emt 0:01:55]} Ne7 {[%emt 0:00:21]} 12. Ng3 {[%emt 0:01:04]} Ng6 {[%emt 0:00:30]} 13. Qb3 {[%emt 0:02:26]} Be6 {[%emt 0:04:40]} 14. Nf5 Bxc4 {[%emt 0:00:37]} 15. Qxc4 {[%emt 0:05:33]} Qd7 {[%emt 0:05:06]} 16. N3h4 {[%emt 0:10:47]} Nxh4 {[%emt 0:09:12]} 17. Nxh4 {[%emt 0:00:15]} Rad8 {[%emt 0:02:00]} 18. Qb3 {[%emt 0:13:01]} d5 {[%emt 0:02:22]} 19. Be3 {[%emt 0:09:13]} d4 {[%emt 0:12:49]} 20. cxd4 {[%emt 0:00:21]} Bxd4 {[%emt 0:00:10]} 21. Rac1 {[%emt 0:01:15]} c6 {[%emt 0:02:31]} 22. Nf5 {[%emt 0:03:08]} Bxe3 {[%emt 0:04:56]} 23. Rxe3 {[%emt 0:00:10]} Kh7 {[%emt 0:04:11]} 24. Rf3 {[%emt 0:07:52]} Qe6 {[%emt 0:04:46]} 25. Rc3 {[%emt 0:04:00]} Nh5 {[%emt 0:07:17]} 26. g3 {[%emt 0:05:15]} Nf6 {[%emt 0:06:07]} 27. Kg2 {[%emt 0:04:38]} Qxb3 {[%emt 0:02:45]} 28. Rxb3 {[%emt 0:00:11]} Re6 {[%emt 0:00:59]} 29. Ne3 {[%emt 0:01:09]} b5 {[%emt 0:01:29]} 30. Ra3 {[%emt 0:01:43]} Ra8 {[%emt 0:00:49]} 31. Nc2 {[%emt 0:01:12]} Kg8 {[%emt 0:02:52]} 32. Na1 {[%emt 0:02:22]} Nd7 {[%emt 0:01:10]} 33. Nb3 {[%emt 0:00:11]} Rd6 {[%emt 0:00:57]} 34. Na5 {[%emt 0:02:13]} Kf8 {[%emt 0:01:47]} 35. Rc3 {[%emt 0:01:05]} Rc8 {[%emt 0:00:32]} 36. Kf1 {[%emt 0:00:32]} c5 {[%emt 0:01:26]} 37. Ke2 {[%emt 0:00:47]} Rd4 {[%emt 0:01:21]} 38. bxc5 {[%emt 0:00:49]} Rxc5 {[%emt 0:00:17]} 39. Rxc5 {[%emt 0:01:48]} Nxc5 {[%emt 0:00:04]} 40. Nc6 {[%emt 0:00:12]} Ra4 {[%emt 0:15:42]} 41. Nxe5 {[%emt 0:15:29]} Rxa2+ {[%emt 0:00:07]} 42. Ke3 {[%emt 0:00:25]} f6 {[%emt 0:01:19]} 43. Nc6 {[%emt 0:02:02]} Ke8 {[%emt 0:06:50]} 44. Rf5 {[%emt 0:01:22]} Ne6 {[%emt 0:00:00]} 45. Nb4 {[%emt 0:00:00]} Ra4 {[%emt 0:00:00]} 46. Nxa6 {[%emt 0:00:00]} Rxa6 {[%emt 0:00:00]} 47. Rxb5 {[%emt 0:00:00]} Rd6 {[%emt 0:00:00]} 48. Rb3 {[%emt 0:00:00]} Kf7 {[%emt 0:00:00]} 49. Rb7+ {[%emt 0:00:00]} Ke8 {[%emt 0:00:00]} 50. Rb3 {[%emt 0:00:46]} Kd7 {[%emt 0:00:00]} 51. Rc3 {[%emt 0:00:12]} h5 {[%emt 0:00:00]} 52. Rc4 {[%emt 0:01:49]} g5 {[%emt 0:00:00]} 53. Rc3 {[%emt 0:01:25]} Ke7 {[%emt 0:02:01]} 54. Rb3 {[%emt 0:01:33]} Rd7 {[%emt 0:00:19]} 55. Rb6 {[%emt 0:00:42]} Kf7 {[%emt 0:01:56]} 1/2-1/2